fUST/lending_fUST_20251107
["ID","MTS","AMOUNT","RATE_DAILY","PERIOD"]
[393354424,1762511725368,500.0,0.00036979,60]
[393354425,1762511725607,500.0,0.00036979,60]
[393354426,1762511726005,500.0,0.00036979,60]
[393354427,1762511726303,500.0,0.00036979,60]
[393354428,1762511726539,500.0,0.00036979,60]
[393354429,1762511726825,500.0,0.00036979,60]
[393354430,1762511727095,500.0,0.00036979,60]
[393354431,1762511727334,421.23371983,0.00036979,60]
[393354469,1762512632546,-150.0,0.00015336,2]
[393354471,1762512632556,-160.73417,0.00015916,2]
[393354473,1762512632565,-500.0,0.00017226,2]
[393354475,1762512632574,-177.0,0.00017336,2]
[393354477,1762512632584,-204.0,0.00019336,2]
[393354479,1762512632593,-495.0,0.00019999,2]
[393354482,1762512632602,-300.0,0.00019999,2]
[393354484,1762512632611,-300.0,0.00019999,2]
[393354486,1762512632620,-1200.0,0.00019999,2]
[393354488,1762512632630,-1844.18,0.00020045,2]
[393354490,1762512632639,-15154.18828665,0.00020187,2]
[393354492,1762512632648,-360.621258,0.00020187,2]
[393354494,1762512632658,-412.0,0.00020232,2]
[393354496,1762512632667,-150.0,0.00020532,2]
[393354498,1762512632675,-231.0,0.00021336,2]
[393354500,1762512632684,-344.22571029,0.00021881,2]
[393354502,1762512632699,-492.0,0.00021881,2]
[393354504,1762512632708,-192.1389483,0.00022322,2]
[393354505,1762512632717,-256.4395531,0.00022322,2]
[393354507,1762512632726,-425.24690506,0.0002268,2]
[393354509,1762512632735,-412.0,0.00023232,2]
[393354511,1762512632744,-258.0,0.00023336,2]
[393354513,1762512632753,-150.0,0.00023532,2]
[393354515,1762512632762,-168.0,0.00023607,2]
[393354517,1762512632771,-3181.52877049,0.00024,2]
[393354518,1762512632780,-725.86400486,0.00024,2]
[393354519,1762512632789,-2279.02,0.00024079,10]
[393354520,1762512632799,-4345.95,0.00024079,10]
[393354521,1762512632808,-3621.62,0.00024079,10]
[393354522,1762512632817,-500.0,0.00024088,2]
[393354523,1762512632826,-409.53045091,0.00024088,2]
[393354524,1762512632835,-685000.0,0.00024089,2]
[393354525,1762512632844,-449.18,0.000241,7]
[393354526,1762512632854,-5000.0,0.00024189,2]
[393354527,1762512632863,-500.0,0.0002424,2]
[393354528,1762512632872,-500.0,0.0002424,2]
[393354529,1762512632881,-503.14503224,0.00024773,2]
[393354530,1762512632890,-52762.3923506,0.000249,2]
[393354531,1762512632902,-642.60011942,0.000249,2]
[393354532,1762512632912,-17456.00311771,0.000249,2]
[393354533,1762512632923,-912.404044,0.000249,2]
[393354543,1762512638449,-388.79725575,0.0002489,10]
[393354544,1762512638463,-2012.70208524,0.0002489,10]
[393354545,1762512638503,-616.52065901,0.0002489,10]
[393354546,1762512638513,-133.47934099,0.000249,2]
[393354553,1762512640674,-212373.52808028,0.000249,2]
[393354554,1762512640683,-7669.86825414,0.0002499,2]
[393354624,1762512746855,1125.71,0.00036982,60]
[393354625,1762512747122,1125.71,0.00036982,60]
[393354626,1762512747402,1125.71,0.00036982,60]
[393354627,1762512747647,1125.71,0.00036982,60]
[393354628,1762512747922,1125.71,0.00036982,60]
[393354629,1762512748175,1125.71,0.00036982,60]
[393354630,1762512748430,1125.71,0.00036982,60]
[393354631,1762512748697,1125.71,0.00036982,60]
[393354632,1762512748927,1125.71,0.00036982,60]
[393354633,1762512749177,1125.71,0.00036982,60]
[393354634,1762512749446,1125.71,0.00036982,60]
[393354635,1762512749825,1125.71,0.00036982,60]
[393354636,1762512750065,1125.71,0.00036982,60]
[393354637,1762512750299,1125.71,0.00036982,60]
[393354638,1762512750556,1125.71,0.00036982,60]
[393354639,1762512750795,1125.71,0.00036982,120]
[393354640,1762512751034,1125.71,0.00036982,120]
[393354641,1762512754057,1125.71,0.00036982,120]
[393354642,1762512754242,1125.71,0.00036982,120]
[393354643,1762512754519,1125.71,0.00036982,120]
[393354644,1762512754764,1125.71,0.00036982,120]
[393354645,1762512755041,1125.71,0.00036982,120]
[393354646,1762512755310,1125.71,0.00036982,120]
[393354647,1762512755627,1125.75473478,0.00036982,120]
[393354648,1762513202409,4021.4876451,0.00036953,20]
[393354649,1762513203781,689998.0,0.0003287,120]
[393354650,1762513219626,300.13,0.00036953,20]
[393354651,1762513663601,659.89582,0.00036962,20]
[393354696,1762513831753,-412.0,0.00021192,2]
[393354698,1762513831762,-1042.0,0.00021192,2]
[393354700,1762513831771,-150.0,0.00021337,2]
[393354701,1762513831782,-500.0,0.00021973,2]
[393354703,1762513831791,-500.0,0.00021973,2]
[393354705,1762513831800,-507.50640393,0.00021973,2]
[393354707,1762513831811,-1151.0,0.00021987,2]
[393354709,1762513831820,-300.0,0.00021987,2]
[393354710,1762513831830,-1058.0,0.00021988,2]
[393354711,1762513831839,-300.0,0.00021988,2]
[393354712,1762513831848,-300.0,0.00021988,2]
[393354713,1762513831857,-300.0,0.00021988,2]
[393354714,1762513831866,-300.0,0.00021988,2]
[393354715,1762513831875,-23489.77675819,0.00021989,2]
[393354716,1762513831884,-8324.03702241,0.0002199,2]
[393354717,1762513831893,-500.0,0.00022,2]
[393354718,1762513831902,-177.0,0.00023337,2]
[393354719,1762513831911,-192.1389484,0.00023444,2]
[393354720,1762513831920,-227.14138029,0.00023888,6]
[393354721,1762513831928,-2121.01918034,0.000239,2]
[393354722,1762513831938,-552.54041707,0.000239,2]
[393354723,1762513831947,-165.827,0.00023972,5]
[393354724,1762513831956,-168.03915321,0.00023973,2]
[393354725,1762513831965,-500.16307664,0.00023973,2]
[393354726,1762513831976,-500.0,0.00023973,2]
[393354727,1762513831985,-501.53135004,0.00023973,2]
[393354728,1762513831994,-500.0,0.00023973,2]
[393354729,1762513832004,-1455.45,0.00023979,10]
[393354730,1762513832013,-2272.44,0.00023979,10]
[393354731,1762513832022,-1893.7,0.00023979,10]
[393354732,1762513832031,-1578.09,0.00023979,10]
[393354733,1762513832040,-195.92752438,0.00023988,2]
[393354734,1762513832050,-400757.25641912,0.00023989,2]
[393354773,1762513837676,-500.0,0.00023975,2]
[393354774,1762513837686,-500.0,0.00023975,2]
[393354775,1762513837695,-370.60732364,0.00023975,2]
[393354776,1762513837704,-500.0,0.00023975,2]
[393354777,1762513837713,-500.0,0.00023975,2]
[393354778,1762513837723,-500.0,0.00023975,2]
[393354779,1762513837734,-500.0,0.00023975,2]
[393354780,1762513837745,-500.0,0.00023975,2]
[393354781,1762513837757,-500.0,0.00023975,2]
[393354782,1762513837767,-500.0,0.00023975,2]
[393354783,1762513837776,-500.0,0.00023975,2]
[393354784,1762513837786,-500.0,0.00023975,2]
[393354785,1762513837796,-500.0,0.00023975,2]
[393354786,1762513837805,-529.99100134,0.00023975,2]
[393354787,1762513837814,-318.52971548,0.00023975,2]
[393354788,1762513837827,-8320.22298313,0.00023989,2]
[393354789,1762513837838,-975.67453733,0.00023989,2]
[393354791,1762513837849,-6127.23339405,0.00023989,2]
[393354793,1762513837861,-21118.53562212,0.00023989,2]
[393354799,1762513839812,-17382.9601165,0.00023989,2]
[393354842,1762513843546,-1315.07,0.00023979,10]
[393354844,1762513843556,-689.93,0.00023989,2]
[393354871,1762513846304,-4269.8360399,0.00023989,2]
[393354872,1762513846316,-1004.1,0.00023989,2]
[393354873,1762513846357,-2575.18023849,0.00023989,2]
[393354874,1762513961919,534.7,0.00036962,60]
[393354875,1762513962210,534.7,0.00036962,60]
[393354876,1762513962495,534.7,0.00036962,60]
[393354877,1762513962761,534.7,0.00036962,60]
[393354878,1762513963004,534.7,0.00036962,60]
[393354879,1762513963288,534.7,0.00036962,60]
[393354880,1762513963665,534.7,0.00036962,60]
[393354881,1762513963909,534.7,0.00036962,60]
[393354882,1762513964169,534.7,0.00036962,60]
[393354883,1762513964444,534.7,0.00036962,60]
[393354884,1762513964782,534.7,0.00036962,60]
[393354885,1762513964921,534.7,0.00036962,60]
[393354886,1762513965161,534.7,0.00036962,60]
[393354887,1762513965394,534.7,0.00036962,60]
[393354888,1762513965654,534.7,0.00036962,60]
[393354889,1762513965894,534.7,0.00036962,120]
[393354890,1762513966134,534.7,0.00036962,120]
[393354891,1762513966371,534.7,0.00036962,120]
[393354892,1762513966618,534.7,0.00036962,120]
[393354893,1762513966883,534.7,0.00036962,120]
[393354894,1762513967150,534.7,0.00036962,120]
[393354895,1762513967450,534.7,0.00036962,120]
[393354896,1762513967717,534.7,0.00036962,120]
[393354897,1762513967981,534.84734178,0.00036962,120]
[393354898,1762514143250,324.559132,0.00013699,2]
[393354911,1762514583867,150.0,0.000137,2]
[393354912,1762514595081,150.0,0.000137,2]
[393354913,1762514605841,150.0,0.000137,2]
[393354914,1762514616604,150.0,0.000137,2]
[393354916,1762514691216,500.0,0.00036949,60]
[393354917,1762514691438,500.0,0.00036949,60]
[393354918,1762514692005,500.0,0.00036949,60]
[393354919,1762514692296,500.0,0.00036949,60]
[393354920,1762514692575,500.0,0.00036949,60]
[393354921,1762514692818,500.0,0.00036949,60]
[393354922,1762514693045,500.0,0.00036949,60]
[393354923,1762514693397,500.0,0.00036949,60]
[393354924,1762514693628,500.0,0.00036949,60]
[393354925,1762514693864,500.0,0.00036949,60]
[393354926,1762514694118,500.0,0.00036949,60]
[393354927,1762514694395,500.0,0.00036949,60]
[393354928,1762514694683,500.0,0.00036949,60]
[393354929,1762514694958,500.0,0.00036949,60]
[393354930,1762514695466,500.0,0.00036949,60]
[393354931,1762514695694,500.0,0.00036949,120]
[393354932,1762514695938,500.0,0.00036949,120]
[393354933,1762514696210,510.18706137,0.00036949,120]
[393354935,1762514724352,320.0,0.00014494,2]
[393355011,1762515031892,-178.69344344,0.00017894,2]
[393355013,1762515031901,-867.0,0.00017894,2]
[393355015,1762515031910,-150.0,0.00017984,2]
[393355017,1762515031919,-178.69344344,0.00018075,2]
[393355019,1762515031928,-178.69344344,0.00018258,2]
[393355020,1762515031938,-500.01748358,0.000185,2]
[393355021,1762515031947,-177.0,0.00019984,2]
[393355023,1762515031956,-324.559132,0.00020187,2]
[393355024,1762515031965,-412.0,0.00021922,2]
[393355026,1762515031976,-204.0,0.00021984,2]
[393355028,1762515031986,-300.0,0.00023256,2]
[393355030,1762515031996,-300.0,0.00023256,2]
[393355031,1762515032005,-300.0,0.00023256,2]
[393355033,1762515032014,-300.0,0.00023256,2]
[393355034,1762515032023,-300.0,0.00023256,2]
[393355035,1762515032032,-1200.0,0.00023256,2]
[393355036,1762515032042,-44129.4557061,0.00023257,2]
[393355037,1762515032053,-5870.5442939,0.00023257,2]
[393355038,1762515032062,-262.51991631,0.00023259,2]
[393355039,1762515032071,-419.09934698,0.00023273,2]
[393355040,1762515032081,-500.0,0.00023273,2]
[393355041,1762515032091,-165.827,0.00023799,5]
[393355042,1762515032101,-524.233998,0.000238,2]
[393355043,1762515032111,-1785.37297273,0.000238,2]
[393355044,1762515032124,-502.12704521,0.00023873,2]
[393355045,1762515032134,-1237.92,0.00023879,10]
[393355046,1762515032143,-1031.6,0.00023879,10]
[393355047,1762515032154,-859.67,0.00023879,10]
[393355048,1762515032163,-716.39,0.00023879,10]
[393355049,1762515032172,-6461.62782929,0.00023889,2]
[393355050,1762515032183,-678538.37217071,0.00023889,2]
[393355051,1762515032193,-452.18,0.000239,2]
[393355052,1762515032203,-231.0,0.00023984,2]
[393355053,1762515032212,-164.19227556,0.00023989,2]
[393355054,1762515032224,-241.45,0.00024,7]
[393355055,1762515032233,-524.23399799,0.00024053,2]
[393355056,1762515032243,-524.23399799,0.00024306,2]
[393355057,1762515032252,-524.23399799,0.00024558,2]
[393355058,1762515032261,-200.0,0.00024658,15]
[393355059,1762515032270,-524.23399799,0.00024811,2]
[393355060,1762515032280,-263974.663691,0.000249,2]
[393355061,1762515032290,-412.0,0.00024922,2]
[393355062,1762515032299,-300.0,0.00025239,2]
[393355063,1762515032308,-1200.0,0.00025356,2]
[393355064,1762515032318,-168.0,0.00025469,2]
[393355065,1762515032327,-258.0,0.00025985,2]
[393355066,1762515032336,-153.80918315,0.00026547,2]
[393355067,1762515032345,-178.67894227,0.00026646,2]
[393355068,1762515032355,-324.559132,0.00026676,2]
[393355069,1762515032364,-846.98,0.000279,2]
[393355070,1762515032373,-412.0,0.00027922,2]
[393355071,1762515032382,-285.0,0.00027985,2]
[393355072,1762515032391,-181.71,0.00028033,2]
[393355073,1762515032400,-150.0,0.00028383,30]
[393355074,1762515032409,-5000.0,0.00029689,2]
[393355075,1762515032418,-2000.0,0.0002995,7]
[393355076,1762515032427,-312.0,0.00029984,2]
[393355077,1762515032436,-1785.37297271,0.00030352,2]
[393355078,1762515032446,-241.45,0.000304,7]
[393355079,1762515032456,-363.41,0.00030582,2]
[393355080,1762515032465,-180.16,0.000307,7]
[393355081,1762515032475,-155.75,0.00030963,30]
[393355082,1762515032484,-1454.49746749,0.00031582,2]
[393355083,1762515032493,-12500.0,0.00031962,10]
[393355084,1762515032502,-4528.45415863,0.00031966,10]
[393355085,1762515032511,-12500.0,0.00031971,10]
[393355086,1762515032520,-245.57280145,0.00031973,5]
[393355087,1762515032529,-12500.0,0.0003198,10]
[393355088,1762515032539,-339.0,0.00031985,2]
[393355089,1762515032548,-4182.65632344,0.00031988,10]
[393355090,1762515032560,-8317.34367656,0.00031988,10]
[393355091,1762515032570,-1000.0,0.00032876,2]
[393355092,1762515032580,-1000.0,0.00032876,2]
[393355093,1762515032590,-500.0,0.00032876,2]
[393355094,1762515032599,-471.85565016,0.000329,120]
[393355095,1762515032608,-201.55332535,0.000329,120]
[393355096,1762515032618,-375.18037397,0.000329,120]
[393355097,1762515032627,-200.10443906,0.000329,120]
[393355098,1762515032637,-405.17148039,0.000329,120]
[393355099,1762515032647,-188.44193807,0.000329,120]
[393355100,1762515032656,-176.47093901,0.000329,120]
[393355101,1762515032666,-160.42231694,0.000329,120]
[393355102,1762515032675,-235.06478025,0.000329,120]
[393355103,1762515032684,-180.92437215,0.000329,120]
[393355104,1762515032694,-476.03036033,0.000329,120]
[393355105,1762515032703,-1948.16330601,0.000329,120]
[393355106,1762515032713,-310.89979399,0.00033,120]
[393355107,1762515032722,-545.12,0.00033147,2]
[393355108,1762515032732,-479.79,0.0003315,14]
[393355109,1762515032743,-324.559132,0.00033165,2]
[393355110,1762515032752,-846.98,0.000332,14]
[393355111,1762515032761,-168.0,0.0003325,120]
[393355112,1762515032771,-1000.0,0.00033424,2]
[393355113,1762515032780,-1000.0,0.00033424,2]
[393355114,1762515032790,-500.0,0.00033424,2]
[393355115,1762515032800,-1412.54573543,0.00033484,2]
[393355116,1762515032809,-233.62,0.00033543,30]
[393355117,1762515032818,-479.79,0.00033698,16]
[393355118,1762515032827,-471.85565016,0.000339,120]
[393355119,1762515032836,-201.55332535,0.000339,120]
[393355120,1762515032845,-375.18037397,0.000339,120]
[393355121,1762515032854,-200.10443906,0.000339,120]
[393355122,1762515032865,-405.17148039,0.000339,120]
[393355123,1762515032874,-188.44193807,0.000339,120]
[393355124,1762515032883,-235.06478025,0.000339,120]
[393355125,1762515032892,-476.03036033,0.000339,120]
[393355126,1762515032901,-180.92437215,0.000339,120]
[393355127,1762515032910,-1948.16330601,0.000339,120]
[393355128,1762515032919,-1000.0,0.00033972,2]
[393355129,1762515032929,-1000.0,0.00033972,2]
[393355130,1762515032938,-500.0,0.00033972,2]
[393355131,1762515032948,-366.0,0.00033984,120]
[393355132,1762515032957,-479.79,0.00034246,18]
[393355133,1762515032966,-241.45,0.000344,14]
[393355134,1762515032976,-1000.0,0.0003452,2]
[393355135,1762515032986,-1000.0,0.0003452,2]
[393355136,1762515032994,-500.0,0.0003452,2]
[393355137,1762515033003,-479.79,0.00034794,20]
[393355138,1762515033012,-471.85565016,0.000349,120]
[393355139,1762515033022,-201.55332535,0.000349,120]
[393355140,1762515033032,-375.18037397,0.000349,120]
[393355141,1762515033042,-200.10443906,0.000349,120]
[393355142,1762515033051,-405.17148039,0.000349,120]
[393355143,1762515033061,-188.44193807,0.000349,120]
[393355144,1762515033070,-476.03036033,0.000349,120]
[393355145,1762515033080,-180.92437215,0.000349,120]
[393355146,1762515033089,-1948.16330601,0.000349,120]
[393355147,1762515033098,-168.0,0.00034912,120]
[393355148,1762515033108,-724492.5092059,0.00035,5]
[393355191,1762515037836,-1045.69344344,0.00017715,2]
[393355192,1762515037846,-500.0,0.00023256,2]
[393355193,1762515037855,-500.0,0.00023256,2]
[393355194,1762515037864,-500.0,0.00023256,2]
[393355195,1762515037874,-500.0,0.00023256,2]
[393355196,1762515038009,-500.0,0.00023256,2]
[393355197,1762515038024,-500.0,0.00023256,2]
[393355198,1762515038035,-500.0,0.00023256,2]
[393355199,1762515038045,-500.0,0.00023256,2]
[393355200,1762515038056,-500.0,0.00023256,2]
[393355201,1762515038066,-500.0,0.00023256,2]
[393355202,1762515038076,-500.0,0.00023256,2]
[393355203,1762515038086,-500.0,0.00023256,2]
[393355204,1762515038096,-500.0,0.00023256,2]
[393355205,1762515038106,-500.0,0.00023256,2]
[393355206,1762515038121,-500.0,0.00023256,2]
[393355207,1762515038131,-500.0,0.00023256,2]
[393355208,1762515038140,-311.10223789,0.00023256,2]
[393355209,1762515038150,-500.0,0.00023256,2]
[393355210,1762515038162,-170.21601057,0.00023256,2]
[393355211,1762515038174,-329.78398943,0.00023256,2]
[393355212,1762515038184,-180.30501057,0.00023256,2]
[393355213,1762515038198,-438.43502157,0.00023256,2]
[393355214,1762515038208,-500.0,0.00023256,2]
[393355215,1762515038217,-500.0,0.00023256,2]
[393355216,1762515038227,-429.9166179,0.00023256,2]
[393355217,1762515038240,-70.0833821,0.00023256,2]
[393355218,1762515038249,-1057.47629739,0.00032877,7]
[393355219,1762515038259,-1057.47629739,0.00032877,7]
[393355220,1762515038269,-419.91309468,0.00032877,7]
[393355231,1762515040035,-637.56320271,0.00032877,7]
[393355233,1762515040044,-1057.47629739,0.00032877,7]
[393355234,1762515040054,-1057.47629739,0.00032877,7]
[393355235,1762515040063,-1057.47629739,0.00032877,7]
[393355236,1762515040072,-1057.47629739,0.00032877,7]
[393355238,1762515040081,-1057.47629739,0.00032877,7]
[393355240,1762515040091,-1057.47629739,0.00032877,7]
[393355242,1762515040100,-1057.47629739,0.00032877,7]
[393355243,1762515040109,-1057.47629739,0.00032877,7]
[393355245,1762515040121,-1057.47629739,0.00032877,7]
[393355247,1762515040131,-1057.47629739,0.00032877,7]
[393355248,1762515040140,-1057.47629739,0.00032877,7]
[393355250,1762515040149,-729.301176,0.00032877,7]
[393355378,1762515043184,-328.17512139,0.00032877,7]
[393355380,1762515043196,-1057.47629739,0.00032877,7]
[393355382,1762515043206,-1057.47629739,0.00032877,7]
[393355384,1762515043216,-1057.47629739,0.00032877,7]
[393355386,1762515043227,-1057.47629739,0.00032877,7]
[393355388,1762515043240,-1057.47629739,0.00032877,7]
[393355390,1762515043251,-1057.47629739,0.00032877,7]
[393355392,1762515043261,-1057.47629739,0.00032877,7]
[393355394,1762515043271,-1057.47629739,0.00032877,7]
[393355397,1762515043282,-1057.47629739,0.00032877,7]
[393355399,1762515043292,-1057.47629739,0.00032877,7]
[393355401,1762515043303,-1057.47629739,0.00032877,7]
[393355403,1762515043312,-1057.47629739,0.00032877,7]
[393355405,1762515043323,-1057.47629739,0.00032877,7]
[393355407,1762515043333,-1057.47629739,0.00032877,7]
[393355409,1762515043343,-1057.47629739,0.00032877,7]
[393355411,1762515043352,-1057.47629739,0.00032877,7]
[393355413,1762515043361,-1057.47629739,0.00032877,7]
[393355415,1762515043372,-1057.47629739,0.00032877,7]
[393355417,1762515043382,-1057.47629739,0.00032877,7]
[393355419,1762515043394,-79.7752282,0.00032877,7]
[393355421,1762515043406,-977.70106919,0.00032877,7]
[393355423,1762515043416,-1057.47629739,0.00032877,7]
[393355425,1762515043426,-1057.47629739,0.00032877,7]
[393355427,1762515043436,-146.08221415,0.00032877,7]
[393355557,1762515046695,-911.39408324,0.00032877,7]
[393355558,1762515046704,-1057.47629739,0.00032877,7]
[393355559,1762515046714,-1057.47629739,0.00032877,7]
[393355560,1762515046724,-1057.47629739,0.00032877,7]
[393355561,1762515046734,-1057.47629739,0.00032877,7]
[393355562,1762515046744,-1057.47629739,0.00032877,7]
[393355563,1762515046754,-1057.47629739,0.00032877,7]
[393355564,1762515046763,-1057.47629739,0.00032877,7]
[393355565,1762515046773,-1057.47629739,0.00032877,7]
[393355567,1762515046782,-1057.47629739,0.00032877,7]
[393355568,1762515046792,-1057.47629739,0.00032877,7]
[393355569,1762515046801,-1057.47629739,0.00032877,7]
[393355570,1762515046811,-1057.47629739,0.00032877,7]
[393355571,1762515046820,-1057.47629739,0.00032877,7]
[393355572,1762515046829,-1057.47629739,0.00032877,7]
[393355573,1762515046838,-1057.47629739,0.00032877,7]
[393355574,1762515046847,-1057.47629739,0.00032877,7]
[393355575,1762515046856,-1057.47629739,0.00032877,7]
[393355576,1762515046865,-1057.47629739,0.00032877,7]
[393355577,1762515046881,-731.03256375,0.00032877,7]
[393355578,1762515049859,406.60518492,0.00032876,120]
[393355582,1762515916470,12999.98,0.00036973,120]
[393355611,1762516232074,-239.46,0.00015135,2]
[393355612,1762516232085,-150.0,0.00015242,2]
[393355613,1762516232095,-177.0,0.00017242,2]
[393355614,1762516232104,-204.0,0.00019242,2]
[393355615,1762516232114,-231.0,0.00021242,2]
[393355616,1762516232123,-300.0,0.00021989,2]
[393355617,1762516232133,-18139.16264351,0.0002199,2]
[393355618,1762516232142,-159.38424726,0.0002199,2]
[393355619,1762516232153,-1527.24623797,0.0002313,2]
[393355620,1762516232163,-585.04453172,0.0002315,2]
[393355621,1762516232173,-14388.06932457,0.00023151,2]
[393355623,1762516232192,-5988.02800212,0.00023151,2]
[393355624,1762516232202,-548.37409831,0.00023236,2]
[393355625,1762516232212,-500.0,0.00023236,2]
[393355626,1762516232221,-312.3446931,0.00023236,2]
[393355628,1762516232230,-548.37409831,0.00023236,2]
[393355630,1762516232239,-548.37409831,0.00023236,2]
[393355632,1762516232248,-500.0,0.00023236,2]
[393355634,1762516232258,-548.37409831,0.00023236,2]
[393355635,1762516232267,-548.37409831,0.00023236,2]
[393355636,1762516232277,-375.299203,0.00023236,2]
[393355637,1762516232286,-548.37409831,0.00023236,2]
[393355638,1762516232295,-548.37409831,0.00023236,2]
[393355639,1762516232304,-548.37409831,0.00023236,2]
[393355640,1762516232313,-548.37409831,0.00023236,2]
[393355641,1762516232322,-548.37409831,0.00023236,2]
[393355642,1762516232332,-548.37409831,0.00023236,2]
[393355643,1762516232341,-548.37409831,0.00023236,2]
[393355644,1762516232351,-253.82465245,0.00023239,2]
[393355645,1762516232360,-34200.46723113,0.0002324,2]
[393355646,1762516232372,-5852.70892477,0.0002324,2]
[393355647,1762516232381,-258.0,0.00023242,2]
[393355648,1762516232392,-262.2601274,0.00023251,2]
[393355649,1762516232403,-500.0,0.00023273,2]
[393355650,1762516232412,-504.55393242,0.00023273,2]
[393355651,1762516232422,-595.12432425,0.000237,2]
[393355652,1762516232431,-500.0,0.00023773,2]
[393355653,1762516232440,-67898.63228578,0.00023788,2]
[393355695,1762516238044,-548.37409831,0.00023236,2]
[393355696,1762516238054,-548.37409831,0.00023236,2]
[393355697,1762516238064,-16.46135048,0.00023236,2]
[393355698,1762516238077,-531.91274783,0.00023236,2]
[393355699,1762516238087,-548.37409831,0.00023236,2]
[393355700,1762516238096,-548.37409831,0.00023236,2]
[393355701,1762516238106,-548.37409831,0.00023236,2]
[393355702,1762516238116,-548.37409831,0.00023236,2]
[393355703,1762516238125,-548.37409831,0.00023236,2]
[393355704,1762516238138,-548.37409831,0.00023236,2]
[393355705,1762516238148,-548.37409831,0.00023236,2]
[393355706,1762516238161,-548.37409831,0.00023236,2]
[393355707,1762516238171,-548.37409831,0.00023236,2]
[393355708,1762516238181,-548.37409831,0.00023236,2]
[393355709,1762516238191,-548.37409831,0.00023236,2]
[393355710,1762516238201,-548.37409831,0.00023236,2]
[393355711,1762516238211,-548.37409831,0.00023236,2]
[393355712,1762516238220,-548.37409831,0.00023236,2]
[393355713,1762516238230,-548.37409831,0.00023236,2]
[393355714,1762516238239,-548.37409831,0.00023236,2]
[393355715,1762516238249,-548.37409831,0.00023236,2]
[393355716,1762516238259,-548.37409831,0.00023236,2]
[393355717,1762516238268,-548.37409831,0.00023236,2]
[393355718,1762516238278,-548.37409831,0.00023236,2]
[393355719,1762516238288,-548.37409831,0.00023236,2]
[393355720,1762516238297,-548.37409831,0.00023236,2]
[393355721,1762516238307,-548.37409831,0.00023236,2]
[393355722,1762516238317,-548.37409831,0.00023236,2]
[393355723,1762516238327,-548.37409831,0.00023236,2]
[393355724,1762516238336,-548.37409831,0.00023236,2]
[393355725,1762516238346,-548.37409831,0.00023236,2]
[393355726,1762516238355,-228.17249413,0.00023236,2]
[393355727,1762516238367,-320.20160418,0.00023236,2]
[393355728,1762516238377,-548.37409831,0.00023236,2]
[393355729,1762516238386,-548.37409831,0.00023236,2]
[393355730,1762516238396,-548.37409831,0.00023236,2]
[393355731,1762516238409,-548.37409831,0.00023236,2]
[393355732,1762516238418,-548.37409831,0.00023236,2]
[393355733,1762516238427,-548.37409831,0.00023236,2]
[393355734,1762516238437,-72.27059632,0.00023236,2]
[393355735,1762516238449,-476.10350199,0.00023236,2]
[393355736,1762516238459,-548.37409831,0.00023236,2]
[393355737,1762516238469,-548.37409831,0.00023236,2]
[393355738,1762516238479,-548.37409831,0.00023236,2]
[393355739,1762516238587,-548.37409831,0.00023236,2]
[393355740,1762516238625,-548.37409831,0.00023236,2]
[393355741,1762516238635,-548.37409831,0.00023236,2]
[393355742,1762516238645,-548.37409831,0.00023236,2]
[393355743,1762516238658,-548.37409831,0.00023236,2]
[393355744,1762516238670,-548.37409831,0.00023236,2]
[393355745,1762516238680,-480.82105773,0.00023236,2]
[393355746,1762516238692,-67.55304058,0.00023236,2]
[393355747,1762516238702,-247.13336642,0.00023236,2]
[393355748,1762516238715,-301.24073189,0.00023236,2]